bitfinex/quotes_BTCUSD_20250326
["timestamp","ask_amount","ask_price","bid_price","bid_amount"]
[1742996366598,5.6e-07,87958.0,87957.0,0.34696296]
[1742996366803,0.14136056,87958.0,87957.0,0.34696296]
[1742996367214,0.14128056,87958.0,87957.0,0.34696296]
[1742996367599,5.6e-07,87958.0,87957.0,0.34696296]
[1742996367829,0.14124056,87958.0,87957.0,0.34696296]
[1742996368910,0.14124056,87958.0,87957.0,0.7557611]
[1742996369110,0.14224056,87958.0,87957.0,0.7557611]
[1742996369423,0.14224056,87958.0,87957.0,0.7617611]
[1742996370025,0.00100056,87958.0,87957.0,0.7617611]
[1742996370229,0.14188056,87958.0,87957.0,0.7617611]
[1742996370427,5.6e-07,87958.0,87957.0,0.7617611]
[1742996370633,5.6e-07,87958.0,87957.0,0.65088894]
[1742996371781,0.00284189,87970.0,87957.0,0.0073388]
[1742996371984,0.14072,87969.0,87957.0,0.2460908]
[1742996372097,0.00284212,87968.0,87959.0,0.227377]
[1742996372311,0.30786709,87968.0,87958.0,0.22738]
[1742996372556,0.30786709,87968.0,87960.0,0.227375]
[1742996372557,0.30502497,87968.0,87960.0,0.227375]
[1742996372758,0.30502497,87968.0,87961.0,0.227373]
[1742996372935,0.30502497,87968.0,87962.0,0.227369]
[1742996373144,0.30502497,87968.0,87961.0,0.238741]
[1742996373145,0.30502497,87968.0,87967.0,0.227357]
[1742996373336,0.30502497,87968.0,87967.0,0.238724]
[1742996373337,0.14570497,87968.0,87967.0,0.238724]
[1742996373739,0.14068,87968.0,87967.0,0.238724]
[1742996373953,0.14570497,87968.0,87967.0,0.238724]
[1742996374319,0.00502497,87968.0,87967.0,0.238724]
[1742996374490,0.14072,87968.0,87967.0,0.35388833]
[1742996375036,0.15072,87968.0,87967.0,0.238724]
[1742996375493,0.15072,87968.0,87967.0,0.014367]
[1742996375872,0.15072,87968.0,87967.0,0.011367]
[1742996376071,0.15072,87968.0,87963.0,0.238735]
[1742996376275,0.15072,87968.0,87967.0,0.003]
[1742996377086,0.15072,87968.0,87967.0,0.006]
[1742996377467,0.15072,87968.0,87967.0,0.003]
[1742996378075,0.01,87968.0,87964.0,0.227364]
[1742996378407,0.01,87968.0,87967.0,0.238724]
[1742996378612,0.1506,87968.0,87967.0,0.238724]
[1742996379339,0.1506,87968.0,87967.0,0.3354168]
[1742996379634,0.1506,87968.0,87967.0,0.239724]
[1742996379860,0.1506,87968.0,87967.0,0.240724]
[1742996380156,0.1506,87968.0,87967.0,0.239724]
[1742996380354,0.1506,87968.0,87967.0,0.001]
[1742996380494,0.1506,87968.0,87967.0,0.004]
[1742996380699,0.1506,87968.0,87967.0,0.003]
[1742996380925,0.1506,87968.0,87967.0,0.230357]
[1742996381127,0.1506,87968.0,87967.0,0.232357]
[1742996381337,0.1506,87968.0,87967.0,0.002]
[1742996381539,0.1506,87968.0,87964.0,0.227363]
[1742996381739,0.1506,87968.0,87963.0,0.227365]
[1742996381984,0.1506,87968.0,87967.0,0.001]
[1742996382216,0.1506,87968.0,87967.0,0.239724]
[1742996382410,0.1506,87968.0,87967.0,0.26612151]
[1742996382727,0.1506,87968.0,87967.0,0.238724]
[1742996382929,0.1506,87968.0,87966.0,0.238728]
[1742996383132,0.01,87968.0,87966.0,0.22736]
[1742996383333,0.14008,87967.0,87966.0,0.22736]
[1742996383540,0.14008,87967.0,87964.0,0.001]
[1742996383980,0.14008,87967.0,87963.0,0.238734]
[1742996384181,0.14008,87967.0,87962.0,0.011368]
[1742996384386,0.14008,87967.0,87966.0,0.22736]
[1742996384563,0.14008,87967.0,87966.0,0.238728]
[1742996385190,0.14008,87967.0,87966.0,0.22736]
[1742996385397,0.14008,87967.0,87963.0,0.240733]
[1742996385596,0.14008,87967.0,87963.0,0.002]
[1742996385832,0.14008,87967.0,87966.0,0.002]
[1742996386426,0.14292205,87967.0,87966.0,0.002]
[1742996387158,0.14292215,87967.0,87966.0,0.002]
[1742996387457,0.14008,87967.0,87966.0,0.004]
[1742996388254,0.0101696,87968.0,87967.0,0.238724]
[1742996388453,0.1497296,87968.0,87967.0,0.238724]
[1742996388697,0.3,87967.0,87966.0,0.229359]
[1742996388938,0.3,87967.0,87966.0,0.002]
[1742996389067,0.3,87967.0,87964.0,0.227364]
[1742996389271,0.3,87967.0,87963.0,0.227366]
[1742996389627,0.3,87967.0,87966.0,0.002]
[1742996391772,0.3,87967.0,87958.0,0.59056]
[1742996391972,0.00284227,87966.0,87958.0,0.59056]
[1742996392420,0.00284227,87966.0,87963.0,0.002]
[1742996392626,0.00284227,87966.0,87958.0,0.59056]
[1742996392627,0.0495,87965.0,87958.0,0.59056]
[1742996392978,0.3,87963.0,87958.0,0.59256]
[1742996393182,0.079,87962.0,87958.0,0.59456]
[1742996393584,0.079,87962.0,87958.0,0.59256]
[1742996394382,0.36149935,87961.0,87958.0,0.59256]
[1742996394658,0.3,87961.0,87958.0,0.59056]
[1742996395700,0.302,87961.0,87958.0,0.5908992]
[1742996395902,0.31981303,87961.0,87958.0,0.5908992]
[1742996396087,0.32081303,87961.0,87958.0,0.5908992]
[1742996396511,0.02270248,87959.0,87958.0,0.5908992]
[1742996396751,0.02270248,87959.0,87958.0,0.0003392]
[1742996396956,0.02554493,87959.0,87958.0,0.0003392]
[1742996397922,0.02654493,87959.0,87958.0,0.0003392]
[1742996398762,0.02370248,87959.0,87958.0,0.0003392]
[1742996398932,0.02470248,87959.0,87958.0,0.0003392]
[1742996400529,0.16322248,87959.0,87958.0,0.2390892]
[1742996400705,0.16322248,87959.0,87958.0,0.26531812]
[1742996401025,0.32470248,87959.0,87958.0,0.26531812]
[1742996401158,0.16322248,87959.0,87958.0,0.26531812]
[1742996401379,0.16222248,87959.0,87958.0,0.26531812]
[1742996401881,0.01781303,87961.0,87960.0,0.238744]
[1742996402182,0.15633303,87961.0,87960.0,0.33600972]
[1742996402378,0.01781303,87961.0,87960.0,0.33600972]
[1742996402582,0.15629303,87961.0,87960.0,0.33600972]
[1742996402808,0.13848,87961.0,87960.0,0.33600972]
[1742996403420,0.0101696,87968.0,87964.0,0.227365]
[1742996403665,0.0101696,87968.0,87966.0,0.25326885]
[1742996403806,6e-07,87967.0,87966.0,0.92666885]
[1742996404171,6e-07,87968.0,87967.0,0.25326485]
[1742996404374,0.0048411,88009.0,87978.0,0.25323585]
[1742996404375,1e-06,87979.0,87978.0,0.25323585]
[1742996404546,1e-06,87979.0,87978.0,0.71136438]
[1742996405507,1e-06,87979.0,87978.0,0.71036438]
[1742996405837,0.01780521,87993.0,87992.0,0.238657]
[1742996406042,0.01780521,87993.0,87992.0,0.25319785]
[1742996407161,0.01780521,87993.0,87992.0,0.33499785]
[1742996407376,0.01780521,87993.0,87992.0,0.43946054]
[1742996407569,2.1e-07,87993.0,87992.0,0.88935868]
[1742996407820,0.13808,88013.0,88008.0,0.238614]
[1742996408024,0.00241047,88009.0,88008.0,0.829134]
[1742996408374,0.00241047,88009.0,88008.0,0.828134]
[1742996408652,0.00241047,88009.0,88008.0,0.94239164]
[1742996408853,0.00241047,88009.0,88008.0,1.36473063]
[1742996409176,0.00341047,88009.0,88008.0,1.36973063]
[1742996409371,4.7e-07,88009.0,88008.0,1.36973063]
[1742996409597,0.0473,88058.0,88008.0,1.36973063]
[1742996409598,8.7e-07,88011.0,88010.0,0.243608]
[1742996409795,0.00012395,88011.0,88010.0,0.25814885]
[1742996410250,9.5e-07,88011.0,88010.0,0.25814885]
[1742996410457,0.13796,88045.0,88038.0,0.238532]
[1742996410658,0.00672821,88039.0,88038.0,0.287375]
[1742996410906,0.00212312,88039.0,88038.0,0.70971399]
[1742996411279,0.00212312,88039.0,88038.0,0.70871399]
[1742996412243,0.00212312,88039.0,88038.0,0.71471399]
[1742996412585,0.00212312,88039.0,88038.0,0.76041399]
[1742996413200,0.00212312,88039.0,88038.0,0.75441399]
[1742996413684,0.01212312,88039.0,88038.0,0.75441399]
[1742996413950,0.01212312,88039.0,88038.0,0.75841399]
[1742996414560,0.0001698,88055.0,88054.0,0.238489]
[1742996414784,0.0001698,88055.0,88054.0,0.84318985]
[1742996415753,0.0001698,88055.0,88054.0,0.84918985]
[1742996415951,0.0001698,88055.0,88054.0,1.24486487]
[1742996416176,0.0001698,88055.0,88054.0,1.23886487]
[1742996416373,0.0001698,88055.0,88054.0,1.35312251]
[1742996416600,0.0001698,88055.0,88054.0,1.35912251]
[1742996417486,0.0001698,88055.0,88054.0,1.36512251]
[1742996417815,0.0001698,88055.0,88054.0,1.35912251]
[1742996418217,0.0001698,88055.0,88054.0,1.36512251]
[1742996418834,0.0001698,88055.0,88054.0,1.35912251]
[1742996418977,0.0001698,88055.0,88054.0,1.36512251]
[1742996419511,0.0101698,88055.0,88054.0,1.36512251]
[1742996421970,0.0101698,88055.0,88054.0,1.25086487]
[1742996424246,0.0101698,88055.0,88054.0,1.23632402]
[1742996424450,0.0101698,88055.0,88054.0,0.99783502]
[1742996424884,0.3101698,88055.0,88054.0,0.99783502]
[1742996425230,0.3101698,88055.0,88054.0,1.00919102]
[1742996425378,0.3101698,88055.0,88054.0,1.00319102]
[1742996425576,0.0101698,88055.0,88054.0,1.04072444]
[1742996425777,0.0101698,88055.0,88054.0,1.02373187]
[1742996426193,0.0101698,88055.0,88054.0,1.00319102]
[1742996426744,0.0101698,88055.0,88054.0,1.22932402]
[1742996427101,0.0101698,88055.0,88054.0,1.23532402]
[1742996427489,0.0101698,88055.0,88054.0,1.22932402]
[1742996427889,0.0101698,88055.0,88054.0,1.23532402]
[1742996428346,0.0101698,88055.0,88054.0,1.22932402]
[1742996428551,0.0101698,88055.0,88054.0,1.34358166]
[1742996428751,0.02795928,88055.0,88054.0,1.34458166]
[1742996429059,0.02795928,88055.0,88054.0,1.23632402]
[1742996429514,0.02795928,88055.0,88054.0,1.23032402]
[1742996429988,0.02795928,88055.0,88054.0,1.23632402]
[1742996430374,0.02795928,88055.0,88054.0,1.23032402]
[1742996430543,0.02795928,88055.0,88054.0,0.59616]
[1742996430750,0.44624919,88055.0,88054.0,0.006]
[1742996430957,0.37585928,88055.0,88054.0,0.006]
[1742996431159,0.3,88054.0,88047.0,0.58984]
[1742996431362,0.00283927,88053.0,88047.0,0.58984]
[1742996431824,0.3,88054.0,88047.0,0.58984]
[1742996432451,0.02107302,88053.0,88047.0,0.58984]
[1742996433087,0.02107302,88053.0,88047.0,0.59384]
[1742996433261,0.3,88052.0,88051.0,0.22714]
[1742996433481,0.32107302,88052.0,88051.0,0.238497]
[1742996433893,0.45735302,88052.0,88051.0,0.238497]
[1742996434527,0.32107302,88052.0,88051.0,0.238497]
[1742996434728,0.3,88051.0,88047.0,0.59084]
[1742996434928,0.3,88051.0,88049.0,0.227144]
[1742996435289,0.3,88051.0,88050.0,0.35275764]
[1742996435408,0.4364,88051.0,88050.0,0.2385]
[1742996436163,0.45747302,88051.0,88050.0,0.2385]
[1742996436570,0.45747302,88051.0,88050.0,0.2405]
[1742996437066,0.47526509,88051.0,88050.0,0.2405]
[1742996437909,0.47526509,88051.0,88050.0,0.2385]
[1742996438108,0.03886509,88051.0,88050.0,0.2415]
[1742996438261,0.03886509,88051.0,88050.0,0.006]
[1742996439352,0.33886509,88051.0,88050.0,0.006]
[1742996439491,0.42196509,88051.0,88050.0,0.006]
[1742996440139,0.5784101,88051.0,88050.0,0.006]
[1742996440354,0.6242101,88051.0,88050.0,0.006]
[1742996440770,0.6242101,88051.0,88047.0,0.52471017]
[1742996441265,0.00283956,88050.0,88047.0,0.52471017]
[1742996441809,0.00283966,88050.0,88047.0,0.52471017]
[1742996442214,0.02107302,88049.0,88047.0,0.52471017]
[1742996443618,0.59372321,88051.0,88047.0,0.52471017]
[1742996443619,0.02107302,88048.0,88047.0,0.52471017]
[1742996444732,0.45679302,88048.0,88047.0,0.52471017]
[1742996444932,0.32107302,88048.0,88047.0,0.52471017]
[1742996445120,0.45879302,88048.0,88047.0,0.52471017]
[1742996447011,0.47658766,88048.0,88047.0,0.52471017]
[1742996447409,0.54968766,88048.0,88047.0,0.52471017]
[1742996447705,0.54968766,88048.0,88047.0,0.52571017]
[1742996448139,0.54968766,88048.0,88015.0,0.58996]
[1742996448140,0.3,88047.0,88015.0,0.58996]
[1742996448386,0.3,88044.0,88015.0,0.58996]
[1742996448805,0.3832,88042.0,88015.0,0.58996]
[1742996449082,0.3468,88038.0,88015.0,0.58996]
[1742996449330,0.3,88021.0,88015.0,0.59008312]
[1742996449570,0.3,88019.0,88015.0,0.59008312]
[1742996450269,0.03887256,88020.0,88015.0,0.59008312]
[1742996450502,0.3,88017.0,88015.0,0.59008312]
[1742996450913,0.3,88017.0,88015.0,0.59108312]
[1742996451401,0.13596,88018.0,88015.0,0.59208312]
[1742996451838,0.00284042,88017.0,88015.0,0.59208312]
[1742996452066,0.01779954,88020.0,88015.0,0.59208312]
[1742996452249,0.43592,88016.0,88015.0,0.59208312]
[1742996452457,0.3,88016.0,88015.0,0.59108312]
[1742996452656,0.3,88016.0,88015.0,0.59008312]
[1742996452866,0.3,88016.0,88015.0,0.59108312]
[1742996453301,0.3,88016.0,88015.0,0.59008312]
[1742996453432,0.48267771,88016.0,88015.0,0.59008312]
[1742996453639,0.43588,88016.0,88015.0,0.59208312]
[1742996454261,0.3,88016.0,88015.0,0.59208312]
[1742996454454,0.31,88016.0,88015.0,0.59208312]
[1742996454657,0.31,88016.0,88015.0,0.59408312]
[1742996454876,0.33258323,88016.0,88015.0,0.59408312]
[1742996455131,0.46846323,88016.0,88015.0,0.59208312]
[1742996455329,0.33258323,88016.0,88015.0,0.59208312]
[1742996455446,0.33258323,88016.0,88015.0,0.59408312]
[1742996456314,0.46834323,88016.0,88015.0,0.59408312]
[1742996456694,0.33258323,88016.0,88015.0,0.59408312]
[1742996456910,0.46830323,88016.0,88015.0,0.59408312]
[1742996457238,0.48610357,88016.0,88015.0,0.59442192]
[1742996459116,0.55151163,88016.0,88015.0,0.59442192]
[1742996460476,0.62661163,88016.0,88015.0,0.59442192]
[1742996461089,0.62661163,88016.0,88015.0,0.00446192]
[1742996461090,0.67461163,88016.0,88015.0,0.00446192]
[1742996461299,1.57657963,88016.0,88015.0,0.00246192]
[1742996461498,0.52109129,88016.0,88015.0,0.00046192]
[1742996461698,0.59104323,88016.0,88015.0,0.00046192]
[1742996461896,0.59104323,88016.0,88015.0,0.00146192]
[1742996462097,0.45568323,88016.0,88015.0,0.00246192]
[1742996462300,0.46806323,88016.0,88015.0,0.00246192]
[1742996463042,0.46806323,88016.0,88015.0,0.00146192]
[1742996463626,0.46806323,88016.0,88015.0,0.00046192]
[1742996464034,0.46906323,88016.0,88015.0,0.00046192]
[1742996464499,0.47106323,88016.0,88015.0,0.00046192]
[1742996466072,0.48886554,88016.0,88015.0,0.00046192]
[1742996466645,0.5545498,88016.0,88015.0,0.00046192]
[1742996467250,0.48886554,88016.0,88015.0,0.00046192]
[1742996468109,0.48854554,88016.0,88015.0,0.00046192]
[1742996472604,0.47074323,88016.0,88015.0,0.00046192]
[1742996473243,1.31736808,88016.0,88015.0,0.00046192]
[1742996473440,0.005,88008.0,87992.0,0.59016]
[1742996473644,0.3,87992.0,87976.0,0.011366]
[1742996473845,0.3,87990.0,87975.0,0.227335]
[1742996474245,0.3,87990.0,87976.0,0.227334]
[1742996474456,0.00284171,87989.0,87975.0,0.227335]
[1742996474663,0.00284171,87989.0,87973.0,0.00041047]
[1742996474872,0.02264943,87977.0,87973.0,0.22775047]
[1742996475074,0.3,87975.0,87973.0,0.00041047]
[1742996475271,0.3,87975.0,87973.0,0.22775247]
[1742996475500,0.3,87975.0,87974.0,0.227339]
[1742996475689,0.3,87975.0,87974.0,0.238705]
[1742996476512,0.02264943,87977.0,87976.0,0.2387]
[1742996476711,0.45728943,87977.0,87976.0,0.2387]
[1742996477062,0.45728943,87977.0,87973.0,0.00441047]
[1742996477063,0.3,87976.0,87973.0,0.00441047]
[1742996477849,0.15728943,87977.0,87973.0,0.00441047]
[1742996478289,0.15728943,87977.0,87974.0,0.227338]
[1742996478542,0.15728943,87977.0,87973.0,0.00041047]
[1742996478748,0.17301837,87977.0,87974.0,0.003]
[1742996479020,0.17301837,87977.0,87973.0,0.00041047]
[1742996479021,0.30284196,87976.0,87973.0,0.00041047]
[1742996479151,0.00284202,87975.0,87973.0,0.00041047]
[1742996479349,0.00284202,87975.0,87973.0,0.00341047]
[1742996479558,0.86481001,87974.0,87973.0,0.00341047]
[1742996479755,0.93907701,87974.0,87973.0,0.00041047]
[1742996481675,0.93907701,87974.0,87973.0,0.00074947]
[1742996481881,0.93907701,87974.0,87973.0,0.00174947]
[1742996482323,0.93907701,87974.0,87973.0,0.00074947]
[1742996482676,0.94207701,87974.0,87973.0,0.00074947]
[1742996483094,0.81735001,87974.0,87973.0,0.00074947]
[1742996483320,0.58764501,87974.0,87973.0,0.00074947]
[1742996483531,0.77864338,87974.0,87973.0,0.00074947]
[1742996483732,0.70299101,87974.0,87973.0,0.00074947]
[1742996484470,1.25260501,87974.0,87973.0,0.00074947]
[1742996485488,1.25760501,87974.0,87973.0,0.00074947]
[1742996485633,1.27541761,87974.0,87973.0,0.00074947]
[1742996485869,1.26029661,87974.0,87973.0,0.00074947]
[1742996486076,0.89099261,87974.0,87973.0,0.00074947]
[1742996488564,0.60545761,87974.0,87973.0,0.00074947]
[1742996488773,0.61449761,87974.0,87973.0,0.00074947]
[1742996489546,0.61149761,87974.0,87973.0,0.00074947]
[1742996489749,0.61049761,87974.0,87973.0,0.00074947]
[1742996490156,0.61249761,87974.0,87973.0,0.00074947]
[1742996490664,0.73656761,87974.0,87973.0,0.00074947]
[1742996494074,0.61749761,87974.0,87973.0,0.00074947]
[1742996494279,0.61749761,87974.0,87958.0,0.0003392]
[1742996494280,0.005,87967.0,87958.0,0.0003392]
[1742996494484,2.49008246,87974.0,87957.0,0.00012308]
[1742996494485,0.3859,87958.0,87957.0,0.00012308]
[1742996494668,1.390833,87958.0,87957.0,0.00024632]
[1742996495066,1.40864897,87958.0,87957.0,0.00024632]
[1742996495292,1.00788697,87958.0,87957.0,0.00024632]
[1742996495491,0.86924297,87958.0,87957.0,0.00024632]
[1742996496675,0.87224297,87958.0,87957.0,0.00024632]
[1742996497120,0.88678382,87958.0,87957.0,0.00024632]
[1742996497466,0.89548989,87958.0,87957.0,0.00024632]
[1742996497900,1.30908989,87958.0,87957.0,0.00024632]
[1742996499516,0.005,87945.0,87926.0,0.0003392]
[1742996499862,0.005,87945.0,87941.0,0.00246209]
[1742996499863,0.45644501,87942.0,87941.0,0.00246209]
[1742996500139,0.59016501,87942.0,87941.0,0.00246209]
[1742996500339,1.05703701,87942.0,87941.0,0.00246209]
[1742996502174,0.83802801,87942.0,87941.0,0.00246209]
[1742996502429,0.70176101,87942.0,87941.0,0.00246209]
[1742996502768,0.70476101,87942.0,87941.0,0.00246209]
[1742996502971,0.70676101,87942.0,87941.0,0.00246209]
[1742996504779,0.59492501,87942.0,87941.0,0.00246209]
[1742996505422,0.46144501,87942.0,87941.0,0.00246209]
[1742996505576,0.59492501,87942.0,87941.0,0.00246209]
[1742996505780,0.70473845,87942.0,87941.0,0.00246209]
[1742996505987,0.61274171,87942.0,87941.0,0.00246209]
[1742996506899,0.63508743,87942.0,87941.0,0.00246209]
[1742996511039,0.63468743,87942.0,87941.0,0.00246209]
[1742996511837,0.50160743,87942.0,87941.0,0.00246209]
[1742996512135,0.63460743,87942.0,87941.0,0.00246209]
[1742996512849,0.50160743,87942.0,87941.0,0.00246209]
[1742996513094,0.63452743,87942.0,87941.0,0.00246209]
[1742996513637,0.69798017,87942.0,87941.0,0.00246209]
[1742996513843,0.69498017,87942.0,87941.0,0.00246209]
[1742996514062,0.49860743,87942.0,87941.0,0.00246209]
[1742996514269,0.49860743,87942.0,87941.0,0.22988709]
[1742996514270,0.19860743,87942.0,87941.0,0.22988709]
[1742996514553,0.33144743,87942.0,87941.0,0.24125809]
[1742996515566,0.32944743,87942.0,87941.0,0.24125809]
[1742996516001,0.33144743,87942.0,87941.0,0.24125809]
[1742996516416,0.32944743,87942.0,87941.0,0.24125809]
[1742996516777,0.32944743,87942.0,87941.0,0.24225809]
[1742996516981,0.32944743,87942.0,87941.0,0.23088709]
[1742996517264,0.32944743,87942.0,87941.0,0.24225809]
[1742996518621,0.32944743,87942.0,87941.0,0.00346209]
[1742996518826,0.32944743,87942.0,87941.0,0.24225809]
[1742996519366,0.19660743,87942.0,87941.0,0.24225809]
[1742996519541,0.49660743,87942.0,87941.0,0.24225809]
[1742996519683,0.04016242,87942.0,87941.0,0.24225809]
[1742996519893,0.04016242,87942.0,87941.0,0.32515809]
[1742996519894,0.02234572,87942.0,87941.0,0.32515809]
[1742996520711,0.02234572,87942.0,87941.0,0.32415809]
[1742996521601,0.02234572,87942.0,87941.0,0.32515809]
[1742996522822,0.02334572,87942.0,87941.0,0.32515809]
[1742996523166,0.02434572,87942.0,87941.0,0.33015809]
[1742996523381,0.02434572,87942.0,87941.0,0.24725809]
[1742996523765,0.02434572,87942.0,87941.0,0.00846209]
[1742996523987,0.02434572,87942.0,87941.0,0.24725809]
[1742996524498,0.02434572,87942.0,87941.0,0.83793809]
[1742996527416,0.04215943,87942.0,87941.0,0.83793809]
[1742996528536,0.04215943,87942.0,87941.0,0.94336229]
[1742996528791,0.04215943,87942.0,87941.0,0.83793809]
[1742996528972,0.47451943,87942.0,87941.0,0.83793809]
[1742996529534,0.04215943,87942.0,87941.0,0.83793809]
[1742996529750,0.04215943,87942.0,87941.0,0.92797894]
[1742996529751,0.01981371,87942.0,87941.0,0.92797894]
[1742996529985,7.1e-07,87942.0,87941.0,1.49547496]
[1742996530370,0.13248,87969.0,87956.0,0.25329585]
[1742996530672,0.02275387,87959.0,87956.0,0.32879585]
[1742996530871,0.02275387,87959.0,87956.0,0.43216694]
[1742996531154,0.13248,87969.0,87956.0,0.43216694]
[1742996531379,0.3,87978.0,87956.0,0.43216694]
[1742996531580,0.31120564,87980.0,87956.0,0.43216694]
[1742996531581,0.02251692,87962.0,87956.0,0.43116694]
[1742996533056,6e-07,87957.0,87956.0,0.82584196]
[1742996533972,6e-07,87957.0,87956.0,0.83684196]
[1742996534326,6e-07,87957.0,87956.0,0.83084196]
[1742996534726,6e-07,87957.0,87956.0,0.83684196]
[1742996535004,6e-07,87957.0,87956.0,0.83184196]
[1742996535488,6e-07,87957.0,87956.0,0.83784196]
[1742996535719,6e-07,87957.0,87956.0,0.89014196]
[1742996535894,0.10195077,87986.0,87985.0,0.238676]
[1742996536099,0.10195077,87986.0,87985.0,1.25907172]
[1742996536504,0.02240773,87987.0,87986.0,0.011365]
[1742996536706,0.02240773,87987.0,87986.0,0.40704002]
[1742996537263,0.01792697,87987.0,87986.0,0.40704002]
[1742996537476,0.01792697,87987.0,87986.0,0.52028441]
[1742996538076,0.01792697,87987.0,87986.0,0.52328441]
[1742996538970,0.01792697,87987.0,87986.0,0.53782526]
[1742996539386,0.01792697,87987.0,87986.0,0.42458087]
[1742996539929,0.01792697,87987.0,87986.0,0.42758087]
[1742996540276,0.01792697,87987.0,87986.0,0.42158087]
[1742996540862,0.01792697,87987.0,87986.0,0.43158087]
[1742996541232,0.01809657,87987.0,87986.0,0.41704002]
[1742996541805,6.6e-07,87987.0,87986.0,0.54583851]
[1742996542014,6.6e-07,87987.0,87986.0,0.62253851]
[1742996542335,6.6e-07,87987.0,87986.0,0.62753851]
[1742996542690,0.132,88023.0,88014.0,0.238597]
[1742996542862,0.132,88023.0,88014.0,0.63427136]
[1742996543063,0.00058023,88015.0,88014.0,0.63427136]
[1742996543287,0.0234311,88015.0,88014.0,0.748529]
[1742996544752,0.0234311,88015.0,88014.0,0.751529]
[1742996545368,0.0234311,88015.0,88014.0,0.63727136]
[1742996545541,0.0234311,88015.0,88014.0,0.64027136]
[1742996546303,0.0412294,88015.0,88014.0,0.64027136]
[1742996547555,0.0412294,88015.0,88014.0,0.65481221]
[1742996547813,0.0412294,88015.0,88014.0,1.23051136]
[1742996548017,0.0412294,88015.0,88014.0,0.99191436]
[1742996548198,0.0412294,88015.0,88014.0,1.21915036]
[1742996548552,0.0412294,88015.0,88014.0,1.23051136]
[1742996552681,0.0234311,88015.0,88014.0,1.23051136]
[1742996552890,0.0234311,88015.0,88014.0,1.21915036]
[1742996553089,0.0234311,88015.0,88014.0,1.23051136]
[1742996554141,0.0234311,88015.0,88014.0,0.99191436]
[1742996554455,0.0698311,88015.0,88014.0,0.99191436]
[1742996554654,0.0698311,88015.0,88014.0,1.23051136]
[1742996554995,0.0698311,88015.0,88014.0,0.99191436]
[1742996556020,0.0698311,88015.0,88014.0,0.823476]
[1742996556222,0.0698311,88015.0,88014.0,0.59624]
[1742996557188,0.08763162,88015.0,88014.0,0.59624]
[1742996559484,0.08763162,88015.0,88014.0,0.59324]
[1742996559679,0.43423884,88015.0,88014.0,0.59324]
[1742996559886,0.38763162,88015.0,88014.0,0.59024]
[1742996560310,0.51911162,88015.0,88014.0,0.59124]
[1742996560531,0.52747197,88015.0,88014.0,0.59324]
[1742996560932,0.52747197,88015.0,88014.0,0.59124]
[1742996561087,0.58777917,88015.0,88014.0,0.59124]
[1742996561299,0.66287917,88015.0,88014.0,0.59124]
[1742996561498,0.60257197,88015.0,88014.0,0.59024]
[1742996562854,0.58477145,88015.0,88014.0,0.59024]
[1742996566917,0.60257306,88015.0,88014.0,0.59024]
[1742996567311,0.60357306,88015.0,88014.0,0.59024]
[1742996567684,0.47209306,88015.0,88014.0,0.59024]
[1742996567858,0.60341306,88015.0,88014.0,0.59024]
[1742996568490,0.47209306,88015.0,88014.0,0.59024]
[1742996568696,0.59501271,88015.0,88014.0,0.59024]
[1742996569308,0.65451398,88015.0,88014.0,0.59024]
[1742996569649,0.59501271,88015.0,88014.0,0.59024]
[1742996571792,0.3,88014.0,87998.0,0.23864]
[1742996571997,0.00284093,88013.0,87997.0,0.59024]
[1742996572368,0.00284093,88013.0,87997.0,0.817518]
[1742996572750,0.00284093,88013.0,87997.0,0.59024]
[1742996572961,0.0587614,88012.0,87997.0,0.59024]
[1742996574120,0.00284093,88013.0,87999.0,0.227273]
[1742996574475,0.3,88011.0,87999.0,0.227273]
[1742996574683,0.3,88011.0,87998.0,0.238636]
[1742996574902,0.3,88011.0,87999.0,0.227273]
[1742996575107,0.3,88011.0,87999.0,0.238636]
[1742996575286,0.3,88009.0,87997.0,0.59024]
[1742996575685,0.3,88009.0,87997.0,0.81752]
[1742996576265,0.3,88009.0,87998.0,0.227276]
[1742996576666,0.3,88009.0,87997.0,0.817515]
[1742996576667,0.3,88009.0,87997.0,0.59024]
[1742996576874,0.3,88009.0,87997.0,0.817519]
[1742996577080,0.01780222,88007.0,87997.0,0.59024]
[1742996577305,0.00284094,88006.0,87997.0,0.59024]
[1742996578268,0.00284105,88006.0,87988.0,0.227303]
[1742996578500,0.00284105,88006.0,87989.0,0.03996643]
[1742996578675,0.00284105,88006.0,87991.0,0.227293]
[1742996578903,0.00284105,88006.0,87997.0,0.001]
[1742996579193,0.3456,88004.0,87997.0,0.001]
[1742996579400,0.0751,88002.0,87997.0,0.001]
[1742996579604,1.27183554,88001.0,87997.0,0.002]
[1742996579756,0.02298126,87998.0,87997.0,0.002]
[1742996580138,1.61478483,87998.0,87997.0,0.001]
[1742996580365,2.26474226,87998.0,87997.0,0.001]
[1742996580536,0.78231751,87998.0,87997.0,0.001]
[1742996580967,0.1,87996.0,87987.0,0.000339]
[1742996581147,0.45644501,87988.0,87987.0,0.000339]
[1742996581375,0.66442501,87988.0,87987.0,0.000339]
[1742996581933,0.68223196,87988.0,87987.0,0.000339]
[1742996582144,1.86460316,87988.0,87987.0,0.000339]
[1742996582498,0.98458816,87988.0,87987.0,0.000339]
[1742996582705,0.98458816,87988.0,87960.0,0.817694]
[1742996582706,0.3,87987.0,87960.0,0.817694]
[1742996582853,0.0028421,87986.0,87960.0,0.829062]
[1742996583054,0.3,87984.0,87962.0,0.227369]
[1742996583281,0.0028421,87983.0,87962.0,0.227369]
[1742996583490,0.0028421,87983.0,87960.0,0.829062]
[1742996583643,0.0028421,87983.0,87961.0,0.227373]
[1742996584650,0.0028421,87983.0,87960.0,0.59032]
[1742996584895,0.0028421,87982.0,87960.0,0.817694]
[1742996585113,0.0028421,87982.0,87960.0,0.59032]
[1742996585289,0.3,87967.0,87960.0,0.59032]
[1742996585503,0.3,87967.0,87959.0,0.00012306]
[1742996585504,0.3813,87965.0,87959.0,0.00012306]
[1742996585703,0.3,87963.0,87959.0,0.00012306]
[1742996585905,0.4,87961.0,87959.0,0.00012306]
[1742996586103,0.302843,87960.0,87959.0,0.00012306]
[1742996586330,0.3,87960.0,87959.0,0.00012306]
[1742996586728,0.4214,87960.0,87959.0,0.00012306]
[1742996586933,0.4214,87960.0,87959.0,0.00112306]
[1742996586934,1.4583884,87960.0,87959.0,0.00112306]
[1742996587052,1.47620238,87960.0,87959.0,0.00112306]
[1742996587256,1.47620238,87960.0,87959.0,0.00012306]